Cogmind - Beta 14 *** ADVENTURER MODE // 2025.04.25 @ 12:44:59 Player: zoefiri Result: Destroyed by XG-WWJ(R) with Subdweller Laser Performance ------------- Evolutions (0) 0 Regions Visited (3) 600 Robots Destroyed (21) 105 Value Destroyed (429) 429 Prototype IDs (1) 20 Alien Tech Used (0) 0 Bonus (0) 0 TOTAL SCORE: 1154 Bonus ------- None Cogmind --------- Core Integrity 0/250 Matter 300/300 Energy 100/100 System Corruption 0% Temperature Warm (162) Movement Core (350) Ox6 Location -10/Subcaves Parts ------- > --- POWER (1) -------- (None) > --- PROPULSION (2) --- (None) > --- UTILITY (2) ------ Medium Storage Unit Structural Scanner > --- WEAPON (2) ------- Advanced Beam Cannon Advanced Beam Cannon > --- INVENTORY (10) --- Aluminum Leg Aluminum Leg Aluminum Leg Wheel Heat Sink Heat Sink Small Matter Pod (50) Propulsion Shielding Mining Laser Peak State ------------ > --- POWER ------------ Light Ion Engine > --- PROPULSION ------- Aluminum Leg Aluminum Leg > --- UTILITY ---------- Medium Storage Unit Structural Scanner > --- WEAPON ----------- Advanced Beam Cannon Advanced Beam Cannon > --- INVENTORY -------- Light Ion Engine Aluminum Leg Aluminum Leg Aluminum Leg Wheel Heat Sink Heat Sink Small Matter Pod Propulsion Shielding Mining Laser [Rating: 12] Favorites ----------- Power Light Ion Engine Engine Light Ion Engine Propulsion Aluminum Leg Leg Aluminum Leg Utility Medium Storage Unit Device Structural Scanner Storage Medium Storage Unit Weapon Advanced Beam Cannon Energy Cannon Advanced Beam Cannon Ballistic Gun Assault Rifle Special Weapon Mining Laser Build | -11 -10 -10 -10 ------- Run | Yrd Mat Min Sub Slots Evolved . | . . . . Power . | . . . . Propulsion . | . . . . Utility . | . . . . Weapon . | . . . . Parts Attached 22 | 6 11 2 3 Power 5 | 1 3 . 1 Engine 5 | 1 3 . 1 Core . | . . . . Reactor . | . . . . Propulsion 4 | 2 1 1 . Treads . | . . . . Leg 4 | 2 1 1 . Wheel . | . . . . Hover . | . . . . Flight . | . . . . Utility 4 | 1 3 . . Device 1 | . 1 . . Storage 3 | 1 2 . . Processor . | . . . . Hackware . | . . . . Protection . | . . . . Artifact . | . . . . Weapon 9 | 2 4 1 2 Energy Gun . | . . . . Energy Cannon 5 | . 3 . 2 Ballistic Gun 3 | 2 1 . . Ballistic Cannon . | . . . . Launcher . | . . . . Special Weapon 1 | . . 1 . Impact Weapon . | . . . . Slashing Weapon . | . . . . Piercing Weapon . | . . . . Special Melee Weapon . | . . . . Unidentified Prototypes 1 | . 1 . . Parts Lost 7 | . 3 . 4 Power 3 | . 1 . 2 Propulsion 2 | . . . 2 Utility . | . . . . Weapon 2 | . 2 . . Highest Loss Streak 3 | . 3 . 3 To Critical Strikes . | . . . . Average Slot Usage (%) 98 | . 97 100 96 Engine 13 | . 12 14 13 Leg 27 | . 28 28 25 Device 10 | . 8 14 14 Storage 16 | . 18 14 14 Energy Cannon 17 | . 11 27 26 Ballistic Gun 10 | . 16 . . Peak Build Rating 12 | 6 12 12 12 Average Rating 9 | 4 9 11 11 On Entrance 7 | . 6 12 10 Naked Turns . | . . . . Heaviest Build 22 | 14 22 22 22 Greatest Support 20 | 20 20 20 20 Greatest Overweight (x) 7 | 2 7 1 1 Average Overweight (x) . | . . . . Largest Inventory Capacity 10 | 8 10 10 10 Average Capacity 9 | 6 9 10 10 Most Carried 10 | 4 10 10 10 Average Carried 8 | 2 8 10 9 Final Capacity 10 | 8 10 10 10 Final Carried 10 | 4 10 10 9 Class Distribution -------------------- 100% | Mutant Dominant Class ---------------- Mutant | -10/Materials Mutant | -10/Mines Mutant | -10/Subcaves Resources | -11 -10 -10 -10 ----------- Run | Yrd Mat Min Sub Matter Collected 654 | 131 473 10 40 Remotely . | . . . . Salvage Created 706 | . 467 100 139 Parts 40 | . 28 5 7 Haulers Intercepted 2 | . 2 . . Recyclers Shooed . | . . . . Parts Field Recycled . | . . . . Retrieved Matter . | . . . . Parts Self-Destructed 10 | . . . 10 Prevented . | . . . . Kills | -11 -10 -10 -10 ------- Run | Yrd Mat Min Sub Combat Hostiles Destroyed 14 | . 7 2 5 Guns 7 | . 7 . . Cannons 6 | . . 2 4 Classes Destroyed 7 | . 6 . 1 Worker 1 | . 1 . . Hauler 2 | . 2 . . Recycler 1 | . 1 . . Watcher 3 | . 3 . . Swarmer 6 | . 3 . 3 Grunt 6 | . 4 2 . Subdweller 2 | . . . 2 Best Kill Streak 3 | . 3 2 3 Combat Bots Only 3 | . 2 2 3 Max Kills in Single Turn 1 | . 1 1 1 Gunslinging . | . . . . Exploded . | . . . . Melee . | . . . . Uniques/NPCs Destroyed . | . . . . Combat | -11 -10 -10 -10 -------- Run | Yrd Mat Min Sub Hostile Shots Fired 135 | . 64 7 64 Missed 40 | . 19 3 18 Damage Taken 1225 | . 527 43 655 Core 252 | . 98 14 140 Absorbed by Shields . | . . . . Ignored by Resistances 356 | . 156 14 186 Core Remaining (%) 100 | 100 . . . Volleys Fired 65 | . 45 6 14 Largest 2 | . 2 2 2 Hottest 168 | . 136 168 136 Shots Fired 130 | . 90 12 28 Gun 72 | . 72 . . Cannon 56 | . 18 10 28 Launcher . | . . . . Special 2 | . . 2 . Kinetic 72 | . 72 . . Thermal 58 | . 18 12 28 Explosive . | . . . . Electromagnetic . | . . . . Robot Hit Streak 19 | . 11 7 19 Robot Miss Streak 4 | . 4 1 1 Penetration Max . | . . . . Secondary Targets 1 | . 1 . . Max Gunslinging Chain 1 | . 1 . . Shots Hit Robots 95 | . 65 5 25 Core Hits 28 | . 19 3 6 Critical Kills 2 | . 1 . 1 Critical Parts Destroyed . | . . . . Critical Strikes 2 | . 1 . 1 Meltdown 2 | . 1 . 1 Melee Attacks . | . . . . Impact . | . . . . Slashing . | . . . . Piercing . | . . . . Sneak Attacks . | . . . . Combat Hostiles . | . . . . Follow-up Attacks . | . . . . Damage Inflicted 1579 | . 961 103 515 Guns 632 | . 632 . . Cannons 928 | . 310 103 515 Explosions . | . . . . Melee . | . . . . Ramming 19 | . 19 . . Kinetic 632 | . 632 . . Thermal 928 | . 310 103 515 Explosive . | . . . . Electromagnetic . | . . . . Impact . | . . . . Slashing . | . . . . Piercing . | . . . . Highest Corruption . | . . . . Average Corruption . | . . . . Corruption Purged . | . . . . Corruption Blocked . | . . . . Overload Shots . | . . . . Overflow Damage 3 | . . . 3 Projectiles 3 | . . . 3 Explosions . | . . . . Melee . | . . . . Knockbacks . | . . . . Impact . | . . . . Kinetic . | . . . . Secondary . | . . . . Self-Inflicted Damage . | . . . . Shots . | . . . . Rammed . | . . . . Targets Rammed 5 | . 5 . . Kicked 5 | . 5 . . Crushed . | . . . . Highest Temperature 330 | . 225 330 156 Average Temperature 87 | . 70 137 65 Received Heat Transfer 471 | . 267 30 174 Siege Activations . | . . . . Robots Corrupted . | . . . . Combat Hostiles . | . . . . Parts Fried . | . . . . Impact Corruptions . | . . . . Robots Melted 2 | . 1 . 1 Combat Hostiles 1 | . . . 1 Parts Melted 5 | . 3 . 2 Heat Transferred 1665 | . 555 185 925 Parts Sabotaged . | . . . . Parts Stolen . | . . . . Parts Stripped . | . . . . Power Chain Reactions . | . . . . Alert | -11 -10 -10 -10 ------- Run | Yrd Mat Min Sub Peak Influence 203 | . 203 50 . Initial . | . . . . Average 36 | . 35 48 . Maximum Alert Level 1 | . 1 . . Low Security (%) 98 | 100 98 100 . Level 1 1 | . 1 . . Level 2 . | . . . . Level 3 . | . . . . Level 4 . | . . . . Level 5 . | . . . . High Security . | . . . . Max Security . | . . . . Squads Dispatched 1 | . 1 . . Investigation 1 | . 1 . . Extermination . | . . . . Reinforcement . | . . . . Assault . | . . . . Garrison . | . . . . Intercept . | . . . . Searches Triggered . | . . . . Construction Impeded . | . . . . Haulers Reinforced . | . . . . Active Scanning Responses . | . . . . Cargo Convoy Interrupts . | . . . . Stealth | -11 -10 -10 -10 --------- Run | Yrd Mat Min Sub Distress Signals 3 | . 3 . . Communications Jammed . | . . . . Distress Signals . | . . . . Times Spotted 25 | . 15 2 8 Peak Tracking Total 4 | . 4 1 4 Tactical Retreats 1 | . 1 . . Traps | -11 -10 -10 -10 ------- Run | Yrd Mat Min Sub Traps Triggered 1 | . 1 . . Indirectly . | . . . . Trap Hack Attempts . | . . . . Triggered . | . . . . Disarmed . | . . . . Reprogrammed . | . . . . Reused . | . . . . Traps Extracted . | . . . . Installed . | . . . . Triggered . | . . . . Machines | -11 -10 -10 -10 ---------- Run | Yrd Mat Min Sub Machines Disabled . | . . . . Max in Single Turn . | . . . . Machines Repaired . | . . . . Machines Dismantled . | . . . . Machines Sabotaged . | . . . . Overloaded Fab Kills . | . . . . Hacking | -11 -10 -10 -10 --------- Run | Yrd Mat Min Sub Machines Accessed . | . . . . Terminals . | . . . . Fabricators . | . . . . Repair Stations . | . . . . Recycling Units . | . . . . Scanalyzers . | . . . . Garrison Access . | . . . . Total Hacks . | . . . . Successful . | . . . . Failed . | . . . . Catastrophic . | . . . . Database Lockouts . | . . . . Manual . | . . . . Terminals . | . . . . Fabricators . | . . . . Repair Stations . | . . . . Recycling Units . | . . . . Scanalyzers . | . . . . Garrison Access . | . . . . Terminal Hacks . | . . . . Fabricator Hacks . | . . . . Repair Station Hacks . | . . . . Recycling Unit Hacks . | . . . . Scanalyzer . | . . . . Garrison Access Hacks . | . . . . Unauthorized Hacks . | . . . . Terminals . | . . . . Fabricators . | . . . . Repair Stations . | . . . . Recycling Units . | . . . . Scanalyzers . | . . . . Garrison Access . | . . . . Data Cores Recovered . | . . . . Used . | . . . . Hacking Detections . | . . . . Full Trace Events . | . . . . Feedback Events . | . . . . Feedback Blocked . | . . . . Robot Schematics Acquired . | . . . . Robots Built . | . . . . Authchips . | . . . . Time . | . . . . Total Robot Build Rating . | . . . . Part Schematics Acquired . | . . . . Parts Built . | . . . . Authchips . | . . . . Time . | . . . . Total Part Build Rating . | . . . . Parts Repaired . | . . . . Time . | . . . . Parts Recycled . | . . . . Recycled Matter . | . . . . Retrieved Matter . | . . . . Retrieved Components . | . . . . Parts Scanalyzed . | . . . . Part Schematics Acquired . | . . . . Parts Damaged . | . . . . Bothacking | -11 -10 -10 -10 ------------ Run | Yrd Mat Min Sub Used RIF Installer . | . . . . Robots Hacked . | . . . . Non-combat . | . . . . Combat . | . . . . Robot Hacks Applied . | . . . . Relay Couplers Released . | . . . . Fabnet Peak Effective % . | . . . . Robots Rewired . | . . . . Allies Hacked . | . . . . Hacks Repelled . | . . . . Allies | -11 -10 -10 -10 -------- Run | Yrd Mat Min Sub Total Allies . | . . . . Largest Group . | . . . . Highest-Rated Group . | . . . . Highest-Rated Ally . | . . . . Total Orders . | . . . . Ally Attacks . | . . . . Total Damage . | . . . . Kills . | . . . . Allies Corrupted . | . . . . Allies Melted . | . . . . Intel | -11 -10 -10 -10 ------- Run | Yrd Mat Min Sub Robot Analysis Total . | . . . . Derelict Logs Recovered 1 | . . 1 . Drone Launches . | . . . . Drone Recoveries . | . . . . Exploration | -11 -10 -10 -10 ------------- Run | Yrd Mat Min Sub Turns Passed 1364 | 74 821 281 188 Spaces Moved 702 | 53 435 136 78 Core 17 | 13 4 . . Treads . | . . . . Legs 685 | 40 431 136 78 Wheels . | . . . . Hover . | . . . . Flight . | . . . . Fastest Speed 50 | 50 120 120 120 Average Speed 153 | 114 142 188 178 Slowest Speed 400 | 150 400 190 190 Overloaded Moves . | . . . . Propulsion Burnouts . | . . . . Robots Hopped . | . . . . Cave-ins Triggered . | . . . . Exploration Rate (%) 28 | 3 66 31 12 Regions Visited 3 Branch Regions 2 Pre-discovered Areas . | . . . . Known Exits Taken . | . . . . Unknown Exits Taken 3 | 1 1 1 . Scrap Searched 1 | . . 1 . Spaces Dug . | . . . . Terrain Destroyed . | . . . . Melee . | . . . . Projectile . | . . . . AOE . | . . . . Terrain Rammed . | . . . . Walls Destroyed . | . . . . Machines Disabled . | . . . . Actions | -11 -10 -10 -10 --------- Run | Yrd Mat Min Sub Total 856 | 64 548 146 98 Wait 36 | . 33 . 3 Move 699 | 52 434 135 78 Hop . | . . . . Pick Up 18 | 6 11 1 . Fast Attach 9 | 4 5 . . Attach 8 | 2 5 . 1 Detach 2 | . 2 . . Swap 5 | . 1 2 2 Drop 9 | . 7 2 . Fire 65 | . 45 6 14 Melee . | . . . . Ram . | . . . . Kick 5 | . 5 . . Crush . | . . . . Escape Stasis . | . . . . Rewire . | . . . . Trap . | . . . . Miscellaneous . | . . . . Route ------- -11/Scrapyard -10/Materials (discovered 3 exits: [*Mat] / [*Min] / [Sub]) -10/Mines -10/Subcaves History --------- Turn | Location | Event 21 | -11/Scrapyard | Discovered new exit (range 16) 75 | -11/Scrapyard | Entered Materials 129 | -10/Materials | Discovered new exit (range 10) 316 | -10/Materials | Build established: Mutant 418 | -10/Materials | Discovered new exit (range 14) 569 | -10/Materials | Discovered new exit (range 6) 587 | -10/Materials | Lost 3 parts (1p2w) 896 | -10/Materials | Entered Mines 948 | -10/Mines | Learned Materials stockpile data 1026 | -10/Mines | Discovered new exit (range 10) 1177 | -10/Mines | Entered Subcaves 1269 | -10/Subcaves | Core integrity fell below 50% 1335 | -10/Subcaves | Core integrity fell below 20% 1365 | -10/Subcaves | Destroyed by XG-WWJ(R) with Subdweller Laser Last Messages --------------- Subatomizers dissect the Lgt. Ion Engine. Acquired 19 matter. Lgt. Ion Engine fries itself beyond repair. Acquired 11 matter. Subatomizers dissect the Flight Unit. Flight Unit fries itself beyond repair. Lgt. Ion Engine destroyed. Acquired 10 matter. 5A-QBY(R) emerges from concealment. WN-KH1(R) suffers critical hit (Meltdown). Sub. Optics melted. Aluminum Leg destroyed. Sub. Power Source melted. AV-MN3(R) destroyed. Subatomizers dissect the Sub. Power Source. Aluminum Leg destroyed. HX-OJX(R) affixes Scrap Shield Fragment to Scrap Shield. Lgt. Ion Engine destroyed. Subatomizers dissect the Sub. Power Source. Map ----- +----------------------------------------------------+ | ?????????????????????????????????????????????????? | | ?????????????????????????????????????????????????? | | ?????????????????????????????????????????????????? | | ?????????????????????????????????????????????????? | | ?????????????????????????????????????????????????? | | ?????????????????????????????????????????????????? | | ?????????????????????????????????????????????????? | | ?????????????????????????????????????????????????? | | ?????????????????????????????????????????????????? | | ?????????????????????????????????????????????????? | | ?????????????????????????????????????????????????? | | ?????????????????????????????????????????????????? | | ?????????????????????????????????????????????????? | | ?????????????????????????????????????????????????? | | ??????????????????????????? #???????????????????? | | ??????????????????????????? #### ???????????????? | | ??????????????????????????? #######?????????????? | | ???????????????????????????? ####?????#######?? | | ???????????????????????????? ##?????######### | | ???????????????????????????# #?????## ### | | ??????????????????????????### ##?????????? # | | ????????????????????????? ### ########????? | | ?????????## ?????????#### ###########???## | | ?????????## ??##### #### "######### | | ?????????## ### R R""" ""######### | | ?????????# @ %|= R""""" #### #### | | ?????????? [%* ## #### ### | | ????????????## ### #### #### ## | | ????????????######### ###### ###### ### ## | | ????????????########## ###### #### "### ### | | ???????????????????########### #####"""# #### | | ???????????????????#### ## ### # " # #### | | ??????????????????### ## # # | | ??????????????????## % | | ??????????????????## ## ## # % ## | | ????????????????? ###### ## ## # # | | ????????????????? ## ### | | ????????????????? ? ## #### | | ?????????????????? ?? ## ## ##### | | ??????????????????????### ######## ####?# | | ??????????????????????##### ########## #####??# | | ???????????????????????########?????##########???# | | ?????????????????????????#####???????#######?????? | | ?????????????????????????????????????????????????? | | ?????????????????????????????????????????????????? | | ?????????????????????????????????????????????????? | | ?????????????????????????????????????????????????? | | ?????????????????????????????????????????????????? | | ?????????????????????????????????????????????????? | | ?????????????????????????????????????????????????? | +----------------------------------------------------+ Best States ------------- Heat Dissipation 25 Energy Generation 10 Energy Capacity 250 Matter Stores 300 Matter Capacity 350 Sight Range 16 Terrain Scan Density 10 Resistance: KI 20 Resistance: TH 20 Resistance: EX 20 Resistance: EM 20 Resistance: I 20 Resistance: S 20 Resistance: P 20 Evasion (%) 55 Offensive Hacking 10 Item Schematics ----------------- None Robot Schematics ------------------ None Fabricated ------------ Nothing Alien Tech Used ----------------- None Achievements -------------- None Challenges ------------ None Game ------ Seed GrenadeGlidesysGun Manual? 0 Play Time 00:15:19 Cumulative 22.0 hours Start 2025.04.25 @ 12:29:36 End 2025.04.25 @ 12:44:59 Sessions 1 Manual Loads 0 Difficulty Adventurer Special Mode None Game No. 31 Rogue 26 Adventurer 2 Explorer 3 Win Type - Total 0 Types 0/0/0/0/0/0/0/0/0 Lore% 9 Gallery% 27 Achievement% 23 Wizard Run 0 Options --------- Layout 1 ASCII 0 Keyboard 0 Movement Arrows Keybinds 0 Fullscreen 0 Font 28/ProggyBold Map View 50x43 Zoom Use 0% Tactical HUD 0 Map Filters NONE Filters NONE Steam X RUN: e96ca3ac-6abc-4fc3-ab54-f55a06a2f2f9